bitfinex-derivatives/quotes_ETHF0:USTF0_20250404
["timestamp","ask_amount","ask_price","bid_price","bid_amount"]
[1743765952591,1.12558,1777.0,1776.9,0.0084324]
[1743765954596,2.65338,1777.0,1776.9,0.0084324]
[1743765955093,4.0278,1777.0,1776.5,4.289]
[1743765955298,3.2078,1777.1,1776.6,3.2078]
[1743765955496,1.12561,1777.0,1776.8,1.12568]
[1743765955692,1.12558,1777.0,1776.8,8.62246]
[1743765955889,0.0084324,1777.2,1776.9,2.81411]
[1743765956096,0.0084324,1777.2,1777.1,1.12551]
[1743765956295,1.1338824,1777.2,1777.1,4.289]
[1743765956502,1.1338824,1777.2,1777.1,45.089]
[1743765956687,6.8416824,1777.2,1777.1,40.8]
[1743765956892,1.1257,1776.8,1776.6,1.12581]
[1743765957094,1.1257,1776.8,1776.6,1.06550891]
[1743765957394,1.12568,1776.9,1776.7,1.12576]
[1743765957595,1.12558,1777.0,1776.8,1.12568]
[1743765957795,1.12564,1776.9,1776.7,1.12573]
[1743765958098,1.12563,1777.0,1776.6,3.2078]
[1743765958401,1.12571,1776.8,1776.5,45.811]
[1743765958595,1.12582,1776.7,1776.5,46.87656891]
[1743765958896,1.12575,1776.8,1776.5,45.089]
[1743765959097,2.55985,1776.8,1776.6,1.12582]
[1743765959293,1.1258,1776.7,1776.5,41.92585]
[1743765959494,1.12579,1776.7,1776.4,7.4968]
[1743765959688,2.55984,1776.8,1776.6,1.12582]
[1743765959893,2.55984,1776.8,1776.4,51.11157]
[1743765960198,4.6419,1776.8,1776.2,6.02299]
[1743765960396,0.7153,1776.7,1776.4,1.12592]
[1743765960593,2.55998,1776.6,1776.3,4.289]
[1743765960794,1.12592,1776.5,1776.2,48.2968]
[1743765960994,3.575,1776.8,1776.7,1.12577]
[1743765960995,0.7607,1776.8,1776.7,1.12577]
[1743765961296,2.2399,1777.0,1776.8,0.06030109]
[1743765961502,1.12564,1776.9,1776.8,0.06030109]
[1743765961798,0.7315,1777.0,1776.9,1.12564]
[1743765962099,0.0084324,1777.2,1777.1,1.12551]
[1743765962295,0.0084324,1777.2,1777.1,5.41451]
[1743765963699,1.1338824,1777.2,1777.1,4.289]
[1743765963897,8.5298824,1777.2,1776.8,5.41466]
[1743765964105,1.12555,1777.1,1776.9,1.12559]
[1743765964401,1.12555,1777.1,1776.8,4.289]
[1743765964402,1.12555,1777.1,1777.0,1.12558]
[1743765964894,1.4907,1777.1,1776.8,4.289]
[1743765965295,1.12564,1776.9,1776.8,5.4147]
[1743765965498,1.12564,1776.9,1776.8,4.289]
[1743765965805,1.4907,1776.9,1776.6,2.59938]
[1743765966002,3.37086,1776.9,1776.6,1.4736]
[1743765966300,1.12571,1776.8,1776.7,1.12574]
[1743765966502,2.61641,1776.8,1776.7,1.12574]
[1743765966797,2.61642,1776.8,1776.7,1.12577]
[1743765966996,1.4907,1776.8,1776.7,1.12577]
[1743765967504,2.6164,1776.8,1776.7,1.12577]
[1743765969000,1.12577,1776.7,1776.6,2.59943]
[1743765969200,4.20247,1776.7,1776.2,40.8]
[1743765969401,3.2078,1776.6,1775.9,39.4213]
[1743765969603,1.1261,1776.2,1776.1,1.12612]
[1743765969799,1.12612,1776.2,1776.1,1.12612]
[1743765969997,2.51397,1776.3,1776.2,1.12608]
[1743765970195,1.12608,1776.2,1776.1,5.41411]
[1743765970400,2.52288,1776.2,1776.1,5.41411]
[1743765970595,1.1263,1775.9,1775.8,1.12631]
[1743765970896,1.12634,1775.8,1775.7,8.77837656]
[1743765971103,7.18624,1775.8,1775.7,8.77837656]
[1743765971401,9.68624,1775.8,1775.7,8.77837656]
[1743765971607,9.68624,1775.8,1775.7,2.09390616]
[1743765971808,1.1264,1775.7,1775.6,13.16756484]
[1743765972106,5.0232,1775.7,1775.6,13.16756484]
[1743765972803,5.0232,1775.7,1775.6,10.29278484]
[1743765973005,1.12646,1775.6,1775.5,10.24895313]
[1743765973201,11.85208,1775.6,1775.1,5.632]
[1743765973498,1.12666,1775.3,1775.2,1.3851]
[1743765973902,1.12678,1775.1,1775.0,11.62938445]
[1743765974104,1.12678,1775.1,1775.0,17.26138445]
[1743765974300,1.12678,1775.1,1775.0,11.62938445]
[1743765975111,3.2078,1775.2,1775.0,17.26138445]
[1743765975304,1.12672,1775.2,1775.1,7.0171]
[1743765975698,4.33452,1775.2,1775.1,1.3851]
[1743765975903,1.12678,1775.1,1775.0,11.62938445]
[1743765976112,2.57388,1775.1,1775.0,13.01448445]
[1743765976506,2.57388,1775.1,1775.0,10.34773445]
[1743765976711,6.86288,1775.1,1775.0,8.75773445]
[1743765977014,12.69088,1775.1,1775.0,3.58817445]
[1743765977308,12.69088,1775.1,1774.9,8.17181758]
[1743765977309,1.12685,1775.0,1774.9,8.17181758]
[1743765977505,3.2078,1774.7,1773.5,3.2078]
[1743765977707,36.9308,1775.0,1773.5,3.2078]
[1743765977708,3.2078,1774.2,1773.8,11.2664]
[1743765978007,0.0084324,1774.4,1773.9,1.5234]
[1743765978219,1.12737,1774.2,1774.0,15.60166]
[1743765978412,6.02521,1774.9,1774.3,1.12727]
[1743765978613,3.2078,1774.9,1774.4,12.7898]
[1743765978907,1.12716,1774.5,1774.4,1.5234]
[1743765979208,1.12742,1774.1,1774.0,0.7088]
[1743765979512,0.0084324,1774.2,1774.1,11.2664]
[1743765979713,1.1273,1774.3,1774.1,12.39379]
[1743765979915,1.12719,1774.5,1774.2,15.5564]
[1743765980106,6.02496,1775.0,1774.3,40.8]
[1743765980301,6.02495,1775.0,1774.6,3.2078]
[1743765980508,1.12716,1774.5,1774.4,18.7642]
[1743765980811,1.12723,1774.4,1774.3,40.8]
[1743765981008,1.12721,1774.5,1774.4,11.2664]
[1743765981212,1.12716,1774.5,1774.4,11.2664]
[1743765981916,1.12729,1774.3,1774.2,0.7438]
[1743765982417,1.12729,1774.3,1774.2,11.2664]
[1743765983418,7.53486718,1774.3,1774.2,11.2664]
[1743765983909,6.40757718,1774.3,1774.2,11.2664]
[1743765984122,7.53486718,1774.3,1774.2,11.2664]
[1743765984513,7.53486718,1774.3,1774.2,12.7592]
[1743765987118,1.12729,1774.3,1774.2,12.7592]
[1743765987318,1.12729,1774.3,1774.2,4.30266796]
[1743765989414,1.12745,1774.1,1773.8,5.32652678]
[1743765989707,4.33525,1774.1,1774.0,1.12744]
[1743765990114,1.12753,1774.0,1773.9,1.12751]
[1743765990312,4.33525,1774.1,1774.0,1.12748]
[1743765990511,1.12749,1774.0,1773.9,1.1275]
[1743765991011,3.2078,1774.1,1774.0,1.12748]
[1743765991320,1.12732,1774.3,1774.2,1.12735]
[1743765991615,3.2078,1774.4,1774.3,1.12729]
[1743765992223,4.33503,1774.4,1774.3,1.12729]
[1743765992417,3.2078,1774.4,1774.3,3.62729]
[1743765992616,0.0084324,1774.6,1774.5,1.12716]
[1743765992818,1.1355324,1774.6,1774.5,1.12716]
[1743765993113,1.1355324,1774.6,1774.4,6.87217]
[1743765993415,0.0084324,1774.6,1774.4,5.745]
[1743765993620,1.1355824,1774.6,1774.4,6.87218]
[1743765993821,0.0084324,1774.6,1774.4,6.87221]
[1743765994021,0.0084324,1774.6,1774.4,5.745]
[1743765994214,0.0084324,1774.6,1774.4,6.87219]
[1743765994416,0.0084324,1774.6,1774.5,1.12716]
[1743765994615,0.0084324,1774.6,1774.5,1.4394]
[1743765994822,0.0084324,1774.6,1774.5,2.56656]
[1743765995115,0.0084324,1774.6,1774.5,8.27436]
[1743765995719,0.0084324,1774.6,1774.5,8.71636488]
[1743765996515,1.12688,1775.0,1774.8,1.12694]
[1743765996716,3.2078,1775.1,1775.0,1.12685]
[1743765997121,4.25070945,1775.2,1775.1,1.12678]
[1743765997421,4.25070945,1775.2,1775.1,2.56618]
[1743765998024,4.25070945,1775.2,1775.1,5.06618]
[1743765998510,4.25070945,1775.2,1775.1,2.56618]
[1743765998717,5.37742945,1775.2,1775.1,1.4394]
[1743765999320,5.75610945,1775.2,1775.0,0.0084324]
[1743765999521,2.81712,1775.0,1774.4,4.292]
[1743765999726,1.12704,1774.7,1774.5,2.5905]
[1743765999914,4.33482,1774.8,1774.6,1.1271]
[1743766000116,4.33482,1774.8,1774.7,1.4634]
[1743766000516,1.12723,1774.4,1774.3,0.7082]
[1743766000723,4.33503,1774.4,1774.3,0.7082]
[1743766001127,1.12729,1774.3,1774.2,0.0084324]
[1743766001821,2.57639,1774.3,1774.2,1.4630324]
[1743766002621,2.57639,1774.3,1774.2,0.0084324]
[1743766005732,1.12742,1774.1,1774.0,1.4546]
[1743766006032,4.33522,1774.1,1774.0,1.4546]
[1743766007631,3.2078,1774.1,1774.0,2.58208]
[1743766007828,4.33522,1774.1,1774.0,1.4546]
[1743766008131,1.12761,1773.8,1773.7,0.7011]
[1743766008629,1.12761,1773.8,1773.3,3.38382]
[1743766008630,2.81904,1773.8,1773.2,1.12794]
[1743766008830,1.12793,1773.3,1773.2,0.7452]
[1743766009125,6.4817148,1774.2,1773.2,45.8382]
[1743766009126,3.2078,1773.9,1773.2,45.8382]
[1743766009323,6.02669,1773.9,1773.3,5.966]
[1743766009524,3.2078,1773.9,1773.4,3.2078]
[1743766009725,1.12774,1773.6,1773.5,5.7327]
[1743766010232,4.33551,1773.7,1773.5,9.3605]
[1743766010531,1.12771,1773.7,1773.6,0.6956]
[1743766010729,6.02637,1774.1,1773.7,1.12766]
[1743766011033,1.12763,1773.8,1773.7,0.7507]
[1743766011238,1.12763,1773.8,1773.7,5.0437]
[1743766011829,1.12774,1773.6,1773.5,2.5]
[1743766012029,5.37844945,1773.6,1773.5,2.5]
[1743766012933,4.25070945,1773.6,1773.5,2.5]
[1743766013323,4.25070945,1773.6,1773.5,6.793]
[1743766013530,4.25070945,1773.6,1773.5,7.9208]
[1743766015328,3.22140945,1773.6,1773.5,7.9208]
[1743766015730,2.86900663,1773.7,1773.6,1.12774]
[1743766015932,2.86900663,1773.7,1773.6,4.89954]
[1743766016135,0.0498499,1773.8,1773.6,6.793]
[1743766016331,0.0498499,1773.8,1773.3,4.26612]
[1743766016535,4.33566,1773.4,1773.3,0.6956]
[1743766016835,1.12793,1773.3,1773.0,39.804]
[1743766017135,3.2078,1773.1,1773.0,40.93212]
[1743766017533,3.2078,1773.5,1773.4,1.12786]
[1743766018240,3.2078,1773.5,1773.4,1.88926]
[1743766018537,4.3356,1773.5,1773.3,5.42088]
[1743766018747,3.2078,1773.5,1773.4,1.12786]
[1743766018936,3.2078,1773.5,1773.1,1.4957]
[1743766019235,3.2078,1773.5,1773.1,0.7614]
[1743766019236,4.33574,1773.3,1773.1,0.7614]
[1743766019540,3.2078,1773.3,1773.2,1.12799]
[1743766020031,5.7078,1773.3,1773.1,0.7614]
[1743766020236,5.7078,1773.3,1773.2,1.12799]
[1743766020434,5.7078,1773.3,1773.1,1.128]
[1743766020629,8.28586,1773.3,1773.1,1.12803]
[1743766020835,3.2078,1773.3,1773.2,1.12799]
[1743766021431,3.2078,1773.3,1773.0,35.511]
[1743766021735,3.21625665,1773.6,1773.5,1.1278]
[1743766021940,3.21625665,1773.6,1773.5,5.4218]
[1743766022135,5.71625665,1773.6,1773.4,0.6943]
[1743766022639,1.12782,1773.5,1773.3,1.12788]
[1743766022836,3.2078,1773.4,1773.3,1.12788]
[1743766023033,3.2078,1773.4,1773.2,1.12794]
[1743766023235,1.12793,1773.3,1773.1,4.294]
[1743766023433,3.2078,1773.2,1773.1,1.12801]
[1743766023628,3.2078,1773.2,1773.0,35.511]
[1743766023837,1.12814,1773.0,1772.8,1.12823]
[1743766024037,3.2078,1772.9,1772.8,1.12823]
[1743766024832,3.2078,1773.2,1773.1,1.12805]
[1743766025231,11.75123624,1773.4,1773.0,0.7432]
[1743766025540,11.75123624,1773.4,1773.1,40.8]
[1743766025835,11.75123624,1773.4,1773.3,1.12793]
[1743766026038,16.75123624,1773.4,1773.0,0.7432]
[1743766026234,3.2078,1773.1,1772.8,1.468]
[1743766026441,3.2078,1772.9,1772.8,2.59624]
[1743766028330,3.2078,1772.9,1772.8,1.468]
[1743766028536,1.12831,1772.7,1772.5,7.09442]
[1743766028730,1.12848,1772.5,1772.0,2.82579038]
[1743766028940,4.7132,1772.4,1772.1,1.3938]
[1743766029136,3.2078,1772.4,1772.3,1.12856]
[1743766029335,3.21625665,1772.4,1772.3,1.12856]
[1743766029535,3.21625665,1772.4,1772.1,1.3938]
[1743766029839,3.21625665,1772.4,1772.3,1.12856]
[1743766030540,3.2078,1772.8,1772.7,1.12831]
[1743766031133,3.2078,1772.8,1772.7,41.92831]
[1743766031339,0.84598135,1772.9,1772.8,1.12824]
[1743766031641,0.84598135,1772.9,1772.7,1.4473]
[1743766031846,4.33604,1772.8,1772.7,1.45575665]
[1743766032141,3.2078,1772.8,1772.7,42.25575665]
[1743766032340,7.1107,1772.8,1772.5,35.531]
[1743766032543,3.2078,1772.6,1772.5,35.531]
[1743766032843,3.2078,1772.6,1772.3,1.4473]
[1743766033045,3.2078,1772.4,1772.3,1.4473]
[1743766033244,3.2078,1772.4,1772.3,2.57586]
[1743766033749,3.2078,1772.6,1772.3,2.57586]
[1743766034043,3.2078,1772.6,1772.5,1.12844]
[1743766034241,4.33622,1772.6,1772.4,1.4473]
[1743766034543,3.2078,1772.6,1772.5,1.12844]
[1743766034936,4.6179,1772.6,1772.5,1.12844]
[1743766035138,3.2078,1772.6,1772.5,1.12844]
[1743766035440,8.54343624,1772.7,1772.6,1.12837]
[1743766035642,8.54343624,1772.7,1772.6,2.59467]
[1743766035837,13.91570608,1772.8,1772.6,1.4663]
[1743766035838,3.2078,1772.8,1772.6,1.4663]
[1743766036039,1.4101,1772.7,1772.3,40.8]
[1743766036237,1.12851,1772.4,1772.2,2.59488]
[1743766036436,2.82063,1772.8,1772.2,2.59493]
[1743766036437,4.6179,1772.3,1772.2,2.59493]
[1743766037138,3.2078,1772.5,1772.3,1.12856]
[1743766037338,3.2078,1772.5,1772.4,1.4217]
[1743766037544,3.2078,1772.5,1772.4,6.8452]
[1743766038132,3.2078,1772.7,1772.5,1.12844]
[1743766038344,3.2078,1772.7,1772.6,2.55007]
[1743766038843,8.54343624,1772.9,1772.8,1.12824]
[1743766039049,8.53808022,1773.1,1773.0,1.12812]
[1743766039344,6.92857022,1773.1,1773.0,1.12812]
[1743766039545,6.92857022,1773.1,1773.0,5.04982]
[1743766039742,6.92857022,1773.1,1773.0,43.34982]
[1743766040138,10.13637022,1773.1,1773.0,43.34982]
[1743766040343,11.57147022,1773.1,1773.0,47.64582]
[1743766040933,11.57147022,1773.1,1773.0,4.296]
[1743766041142,12.98657022,1773.1,1773.0,1.12812]
[1743766041343,6.92857022,1773.1,1773.0,2.62532]
[1743766041539,6.92857022,1773.1,1773.0,44.12052]
[1743766041944,6.92857022,1773.1,1773.0,46.62052]
[1743766042248,6.92857022,1773.1,1773.0,50.08652]
[1743766042545,6.92857022,1773.1,1773.0,50.85602]
[1743766042741,9.47896693,1773.2,1773.1,1.12805]
[1743766042948,8.08442693,1773.2,1773.1,8.63085]
[1743766043243,0.00845665,1773.2,1773.1,11.13085]
[1743766043444,0.00845665,1773.2,1773.1,7.92305]
[1743766043646,3.2078,1773.7,1773.6,1.12774]
[1743766043847,3.2078,1773.9,1773.8,1.12761]
[1743766044142,1.12763,1773.8,1773.6,4.295]
[1743766044447,1.12788,1773.4,1773.2,1.12796]
[1743766044744,3.2078,1773.4,1773.2,2.55519]
[1743766044941,3.2078,1773.4,1773.2,1.4272]
[1743766045142,3.2078,1773.4,1772.9,1.13659665]
[1743766045143,1.12809,1773.1,1772.9,1.13659665]
[1743766045340,3.2078,1773.0,1772.9,5.43159665]
[1743766045647,4.7378,1773.0,1772.9,5.43159665]
[1743766045943,1.5023,1773.2,1773.1,1.12805]
[1743766046138,3.2078,1773.3,1773.2,1.12799]
[1743766046742,3.2078,1773.3,1773.1,1.4489]
[1743766046941,1.399,1773.2,1773.1,2.57695]
[1743766047141,1.399,1773.2,1772.9,0.00845665]
[1743766047349,3.2078,1773.0,1772.9,2.58553665]
[1743766047743,4.6068,1773.0,1772.9,2.58553665]
[1743766047938,4.6068,1773.0,1772.9,1.45735665]
[1743766048446,4.6068,1773.0,1772.8,1.12822]
[1743766048851,3.2078,1773.0,1772.9,1.12818]
[1743766049550,3.2078,1773.0,1772.8,1.52155665]
[1743766049749,3.2078,1773.0,1772.9,1.12818]
[1743766050146,0.7233,1773.3,1772.9,3.62818]
[1743766050351,0.7233,1773.3,1773.2,1.12799]
[1743766051054,3.2078,1773.4,1773.3,1.12793]
[1743766051257,3.2078,1773.4,1773.1,1.12803]
[1743766051461,3.2078,1773.2,1773.1,1.12803]
[1743766051650,3.2078,1773.2,1773.0,5.8081]
[1743766051958,3.2078,1773.2,1773.1,1.12805]
[1743766053257,4.6538,1773.2,1773.1,1.12805]
[1743766053651,4.6538,1773.2,1773.0,2.64117]
[1743766053854,1.1281,1773.1,1772.9,1.12815]
[1743766054055,3.2078,1773.0,1772.9,6.96125]
[1743766054768,4.33592,1773.0,1772.9,1.5381]
[1743766054956,3.2078,1773.0,1772.9,1.12818]
[1743766055151,3.2078,1773.0,1772.9,2.66628]
[1743766056460,12.07558834,1773.2,1773.1,1.12805]
[1743766056653,12.07558834,1773.2,1773.0,5.42309]
[1743766056858,1.415,1773.1,1772.8,36.67367665]
[1743766057063,4.33598,1772.9,1772.8,0.00845665]
[1743766057660,6.48208,1772.9,1772.8,0.00845665]
[1743766058163,1.12837,1772.6,1772.5,5.7693]
[1743766058364,3.2078,1772.6,1772.5,6.89774]
[1743766061455,3.2078,1772.8,1772.7,1.12831]
[1743766061663,3.2078,1772.8,1772.7,2.61201]
[1743766062072,4.33604,1772.8,1772.7,2.61201]
[1743766062360,4.7191,1772.8,1772.7,1.12831]
[1743766062568,4.7191,1772.8,1772.6,1.4837]
[1743766062761,5.84736,1772.8,1772.6,2.61202]
[1743766063067,5.84736,1772.8,1772.4,1.12845]
[1743766063068,1.12841,1772.6,1772.4,1.12845]
[1743766063268,6.59235,1772.5,1772.3,8.57822]
[1743766063457,5.4639,1772.5,1772.4,1.1285]
[1743766063661,6.59236,1772.5,1772.3,1.12853]
[1743766063858,5.4639,1772.5,1772.4,1.1285]
[1743766064166,0.00845665,1772.6,1772.5,1.12844]
[1743766064366,0.00845665,1772.6,1772.5,3.30914]
[1743766065566,0.00845665,1772.6,1772.5,2.61214]
[1743766066465,0.00845665,1772.6,1772.5,5.11214]
[1743766067758,6.65e-06,1772.6,1772.5,5.11214]
[1743766068067,6.65e-06,1772.6,1772.5,8.31994]
[1743766068268,7.41959499,1772.8,1772.7,1.12831]
[1743766068466,7.41959499,1772.8,1772.7,5.42331]
[1743766068863,7.41959499,1772.8,1772.7,6.90621]
[1743766070379,3.21625665,1772.9,1772.8,1.12824]
[1743766070672,4.73315665,1772.9,1772.7,5.7779]
[1743766070878,4.73315665,1772.9,1772.6,0.00845665]
[1743766071073,1.52535665,1772.9,1772.8,1.12824]
[1743766071372,4.73315665,1772.9,1772.8,1.12824]
[1743766071578,4.73315665,1772.9,1772.7,1.4309]
[1743766071877,4.73315665,1772.9,1772.8,1.12824]
[1743766072078,4.73315665,1772.9,1772.7,1.4309]
[1743766072274,4.73315665,1772.9,1772.8,1.12824]
[1743766072778,5.86135665,1772.9,1772.7,2.55917]
[1743766072975,1.12826,1772.8,1772.6,1.13678665]
[1743766073171,4.7247,1772.7,1772.6,1.13678665]
[1743766073379,5.85301,1772.7,1772.6,1.13682665]
[1743766073574,5.85301,1772.7,1772.6,0.00845665]
[1743766073875,8.35301,1772.7,1772.6,0.00845665]
[1743766074076,7.2247,1772.7,1772.6,0.00845665]
[1743766074276,4.7247,1772.7,1772.6,1.13682665]
[1743766076581,3.2078,1772.7,1772.6,1.13682665]
[1743766078182,13.98973012,1772.7,1772.6,0.00845665]
[1743766078378,15.11804012,1772.7,1772.6,0.00845665]
[1743766078875,21.91304012,1772.7,1772.6,1e-08]
[1743766080374,17.61804012,1772.7,1772.6,1e-08]
[1743766080584,13.98973012,1772.7,1772.6,1.12837001]
[1743766080986,3.2078,1772.7,1772.6,1.12837001]
[1743766081279,17.404718,1772.9,1772.8,1.12744]
[1743766081879,17.404718,1772.9,1772.7,1.12828]
[1743766082083,1.5148,1772.8,1772.7,1.12829]
[1743766082278,17.404718,1772.9,1772.6,1.39760001]
[1743766082484,3.2078,1772.7,1772.6,2.52597001]
[1743766082689,1.86175,1772.7,1772.6,6.82097001]
[1743766082884,14.196918,1772.9,1772.8,1.12824]
[1743766083183,17.404718,1772.9,1772.7,2.283]
[1743766083381,17.404718,1772.9,1772.7,1.528]
[1743766083578,9.75948261,1772.7,1772.6,1e-08]
[1743766083789,12.96728261,1772.7,1772.6,1e-08]
[1743766083991,15.46728261,1772.7,1772.6,1e-08]
[1743766084290,16.86708261,1772.7,1772.6,1e-08]
[1743766085790,14.36708261,1772.7,1772.6,1e-08]
[1743766086088,16.86708261,1772.7,1772.6,1e-08]
[1743766086284,13.23877261,1772.7,1772.6,1e-08]
[1743766086479,16.86708261,1772.7,1772.6,1e-08]
[1743766087392,16.86708261,1772.7,1772.6,1.12837001]
[1743766087393,16.0572873,1772.7,1772.6,1.12837001]
[1743766087890,12.8494873,1772.7,1772.6,1.12837001]
[1743766088287,12.8494873,1772.7,1772.6,1e-08]
[1743766088480,17.1855973,1772.7,1772.6,1e-08]
[1743766088984,21.1630973,1772.7,1772.6,1e-08]
[1743766090690,8.31361,1772.7,1772.6,1e-08]
[1743766095890,14.14161,1772.7,1772.6,1e-08]
[1743766096095,3.2078,1772.3,1771.4,7.09509]
[1743766096300,1.12888,1771.8,1771.7,1.5088]
[1743766096592,4.33668,1771.8,1771.7,1.5088]
[1743766097395,5.7078,1771.8,1771.2,40.8]
[1743766097599,1.12931,1771.2,1771.0,1.12934]
[1743766097896,1.12932,1771.2,1770.9,1.87144]
[1743766098195,3.2078,1771.3,1771.0,41.92938]
[1743766098388,3.2078,1771.6,1771.2,1.12921]
[1743766098593,3.2078,1771.6,1771.4,1.12911]
[1743766098794,4.33681,1771.6,1771.5,1.5194]
[1743766099994,3.2078,1771.8,1771.5,8.3154]
[1743766100192,3.2078,1771.8,1771.5,5.8154]
[1743766100393,4.33669,1771.8,1771.5,5.8154]
[1743766100696,1.12896,1771.7,1771.5,6.94443]
[1743766100896,3.2078,1771.8,1771.5,5.8154]
[1743766101105,1.12901,1771.6,1771.5,5.8154]
[1743766101397,1.12901,1771.6,1771.5,1.5194]
[1743766101690,4.33681,1771.6,1771.5,1.5194]
[1743766102491,5.77941,1771.6,1771.5,1.5194]
[1743766102891,4.33681,1771.6,1771.5,1.5194]
[1743766103287,1.12914,1771.4,1771.3,0.7653]
[1743766103487,4.33694,1771.4,1771.3,0.7653]
[1743766105093,5.7078,1771.4,1770.6,5.966]
[1743766105293,3.2078,1770.7,1770.5,0.5648]
[1743766105597,3.2078,1770.7,1770.6,1.12965]
[1743766106301,1.1297,1770.6,1770.2,1.12988]
[1743766106496,3.2078,1770.4,1770.3,1.4738]
[1743766106800,3.2078,1770.4,1770.3,2.60364]
[1743766107002,3.2078,1770.4,1770.3,1.4738]
[1743766107003,4.33757,1770.4,1770.3,1.4738]
[1743766107201,3.2078,1770.4,1770.3,1.4738]
[1743766107589,3.2078,1770.4,1770.3,2.60364]
[1743766107792,0.00845665,1770.8,1770.3,2.60364]
[1743766107793,3.2078,1770.6,1770.3,5.8308]
[1743766107997,0.00845665,1770.8,1770.4,2.1706]
[1743766108197,4.33751,1770.5,1770.4,2.1706]
[1743766108397,4.33751,1770.5,1770.4,1.4107]
[1743766108597,6.83751,1770.5,1770.4,1.4107]
[1743766108798,1.12997,1770.1,1770.0,0.7599]
[1743766109002,4.33777,1770.1,1770.0,0.7599]
[1743766109202,1.13006,1770.0,1769.7,44.41169473]
[1743766109398,3.2078,1770.0,1769.7,46.30181473]
[1743766109600,3.2078,1770.0,1769.7,45.17159473]
[1743766110400,3.2078,1770.2,1770.1,1.12997]
[1743766110601,3.2078,1770.2,1769.8,1.4077]
[1743766110806,4.33774,1770.2,1769.9,1.4077]
[1743766111102,4.33783,1770.0,1769.9,2.2167]
[1743766111298,3.2078,1770.0,1769.9,1.4077]
[1743766111500,3.2078,1770.0,1769.9,5.03779]
[1743766111704,3.2078,1770.0,1769.9,9.44879]
[1743766112004,3.2078,1770.0,1769.9,5.03779]
[1743766112511,3.2078,1770.4,1769.9,7.1155]
[1743766112799,6.45676661,1770.5,1769.9,7.1155]
[1743766112800,6.45676661,1770.5,1770.2,3.2078]
[1743766112998,3.2078,1770.4,1770.3,6.5998]
[1743766113203,4.33757,1770.4,1770.3,0.7851]
[1743766113601,4.33757,1770.4,1770.0,5.22]
[1743766113602,1.12997,1770.1,1770.0,5.22]
[1743766113907,1.13009,1769.9,1769.8,5.2333]
[1743766114108,4.33789,1769.9,1769.8,5.2333]
[1743766114503,3.2078,1769.9,1769.8,6.36346]
[1743766114808,3.2078,1769.9,1769.8,5.2333]
[1743766115108,4.33781,1770.1,1769.8,1.94742]
[1743766115302,3.2078,1770.1,1769.9,0.844]
[1743766115607,1.13003,1770.0,1769.9,0.844]
[1743766116008,1.13009,1769.9,1769.8,0.8173]
[1743766116303,4.33789,1769.9,1769.8,0.8173]
[1743766116605,3.2078,1769.9,1769.8,0.8173]
[1743766117000,4.33789,1769.9,1769.8,0.8173]
[1743766117304,4.33789,1769.9,1769.3,1.30053486]
[1743766117305,3.2078,1769.9,1769.3,1.30053486]
[1743766117507,2.82526,1769.9,1769.5,0.7759]
[1743766117802,4.33808,1769.6,1769.5,0.7759]
[1743766118007,1.13041,1769.4,1769.3,4.57007486]
[1743766118208,4.33821,1769.4,1769.3,0.17007486]
[1743766118800,6.83821,1769.4,1769.3,0.17007486]
[1743766119106,11.36013,1769.4,1768.2,4.401]
[1743766119305,3.2078,1768.8,1768.6,1.13091]
[1743766119510,3.2078,1768.7,1768.4,0.7823]
[1743766119806,3.2078,1768.6,1768.5,41.93099]
[1743766120207,3.2078,1768.6,1768.5,40.8]
[1743766121099,3.2078,1768.6,1768.5,41.93099]
[1743766121299,3.2078,1768.6,1768.5,44.43099]
[1743766121503,0.00848081,1768.7,1768.6,1.13092]
[1743766122009,0.00848081,1768.7,1768.6,3.63092]
[1743766122196,3.2078,1768.8,1768.7,1.13086]
[1743766122398,3.2078,1769.0,1768.9,1.13073]
[1743766123704,3.2078,1769.0,1768.8,0.00848081]
[1743766124010,1.13101,1768.5,1768.2,1.13114]
[1743766124212,3.2078,1768.3,1767.3,3.2078]
[1743766124407,3.2078,1768.3,1767.9,2.82844]
[1743766124608,3.2078,1768.3,1768.2,1.13118]
[1743766125105,3.2078,1768.3,1768.2,5.65318]
[1743766125407,3.2078,1768.3,1767.8,35.605]
[1743766125710,3.2078,1768.1,1768.0,2.63421]
[1743766126208,3.2078,1768.3,1768.1,1.13121]
[1743766126405,3.2078,1768.3,1768.2,1.5029]
[1743766126611,3.2078,1768.3,1768.2,2.63408]
[1743766127310,0.00848081,1768.4,1768.3,1.13112]
[1743766127609,3.2078,1768.7,1768.6,1.13092]
[1743766127806,3.2078,1768.7,1768.4,1.5029]
[1743766128113,1.1309,1768.7,1768.5,40.8]
[1743766128306,4.33872,1768.6,1768.5,40.8]
[1743766128507,4.33872,1768.6,1768.5,41.93099]
[1743766128508,3.2078,1768.6,1768.5,41.93099]
[1743766128702,0.00848081,1768.7,1768.6,1.13092]
[1743766128911,8.1e-07,1768.7,1768.6,45.89942]
[1743766129210,8.1e-07,1768.7,1768.6,48.39942]
[1743766129405,8.1e-07,1768.7,1768.6,89.19942]
[1743766129607,4.662,1769.4,1768.6,88.0685]
[1743766129801,4.662,1769.4,1769.2,1.13051]
[1743766129802,3.2078,1769.4,1769.2,1.13051]
[1743766130008,3.2078,1769.4,1768.6,82.3607]
[1743766130009,3.2078,1769.4,1769.3,1.4237]
[1743766130210,3.2078,1769.4,1769.3,2.55418]
[1743766130905,3.2078,1769.4,1769.3,1.4237]
[1743766131303,3.2078,1769.4,1769.3,2.55418]
[1743766131514,4.33823,1769.4,1769.1,1.13058]
[1743766131810,1.4284,1769.3,1769.1,1.4008]